fUST/lending_fUST_20260403
["ID","MTS","AMOUNT","RATE_DAILY","PERIOD"]
[419321548,1775161844552,-673.627852,0.00019178,2]
[419321549,1775161844562,-673.627852,0.00019178,2]
[419321550,1775161844571,-673.627852,0.00019178,2]
[419321551,1775161844580,-673.627852,0.00019178,2]
[419321552,1775161844590,-673.627852,0.00019178,2]
[419321553,1775161844599,-673.627852,0.00019178,2]
[419321554,1775161844609,-673.627852,0.00019178,2]
[419321555,1775161844618,-673.627852,0.00019178,2]
[419321556,1775161844627,-618.427464,0.00019178,2]
[419321557,1775161844636,-618.427464,0.00019178,2]
[419321558,1775161844646,-618.427464,0.00019178,2]
[419321559,1775161844655,-618.427464,0.00019178,2]
[419321560,1775161844664,-618.427464,0.00019178,2]
[419321561,1775161844674,-618.427464,0.00019178,2]
[419321562,1775161844683,-618.427464,0.00019178,2]
[419321563,1775161844692,-618.427464,0.00019178,2]
[419321564,1775161844702,-196.2288399,0.00019185,2]
[419321565,1775161844711,-673.627852,0.00019328,2]
[419321566,1775161844720,-673.627852,0.00019328,2]
[419321567,1775161844729,-41.84928291,0.00019328,2]
[419321568,1775161844742,-631.77856909,0.00019328,2]
[419321569,1775161844751,-673.627852,0.00019328,2]
[419321570,1775161844760,-695.5150762,0.00019329,30]
[419321571,1775161844770,-500.0,0.00019419,2]
[419321572,1775161844779,-3092.96547559,0.00019419,2]
[419321573,1775161844788,-151.0,0.00019435,2]
[419321574,1775161844797,-151.0,0.00019435,2]
[419321575,1775161844806,-151.0,0.00019435,2]
[419321576,1775161844815,-3155.7,0.00019453,2]
[419321577,1775161844824,-151.0,0.00019453,2]
[419321578,1775161844833,-618.427464,0.00019453,2]
[419321579,1775161844843,-618.427464,0.00019453,2]
[419321580,1775161844852,-618.427464,0.00019453,2]
[419321581,1775161844861,-618.427464,0.00019453,2]
[419321582,1775161844870,-500.0,0.00019492,2]
[419321583,1775161844879,-600.0,0.00019492,2]
[419321584,1775161844889,-338.31035999,0.00019492,2]
[419321585,1775161844898,-1000.0,0.000195,2]
[419321586,1775161844909,-249.54508032,0.00019662,30]
[419321587,1775161844919,-379.89019538,0.00019662,30]
[419321588,1775161844928,-500.0,0.00019673,2]
[419321589,1775161844938,-500.0,0.00019673,2]
[419321590,1775161844948,-500.0,0.00019673,2]
[419321591,1775161844957,-500.0,0.00019673,2]
[419321592,1775161844967,-500.0,0.00019673,2]
[419321593,1775161844976,-500.0,0.00019673,2]
[419321594,1775161844986,-500.0,0.00019673,2]
[419321595,1775161844995,-500.0,0.00019707,2]
[419321596,1775161845006,-500.0,0.00019707,2]
[419321597,1775161845015,-500.0,0.00019707,2]
[419321598,1775161845025,-500.0,0.00019707,2]
[419321599,1775161845034,-673.627852,0.00019707,2]
[419321600,1775161845044,-673.627852,0.00019707,2]
[419321601,1775161845053,-673.627852,0.00019707,2]
[419321602,1775161845062,-673.627852,0.00019707,2]
[419321603,1775161845071,-500.0,0.00019736,2]
[419321604,1775161845081,-606.13917499,0.00019736,2]
[419321605,1775161845090,-500.0,0.00019831,2]
[419321606,1775161845100,-695.5150762,0.00019847,30]
[419321607,1775161845110,-222.46346479,0.00019861,2]
[419321608,1775161845119,-1782.40675701,0.00019862,4]
[419321609,1775161845128,-500.0,0.00019877,2]
[419321610,1775161845138,-500.0,0.00019877,2]
[419321611,1775161845147,-500.0,0.00019877,2]
[419321612,1775161845157,-500.0,0.00019877,2]
[419321613,1775161845167,-500.0,0.00019877,2]
[419321614,1775161845177,-500.0,0.00019877,2]
[419321615,1775161845186,-618.427464,0.00019877,2]
[419321616,1775161845196,-618.427464,0.00019877,2]
[419321617,1775161845205,-618.427464,0.00019877,2]
[419321618,1775161845214,-618.427464,0.00019877,2]
[419321619,1775161845224,-3046.34650059,0.000199,2]
[419321620,1775161845233,-160.0,0.00019913,2]
[419321621,1775161845243,-154.0,0.00019919,2]
[419321622,1775161845252,-200.0,0.00019919,2]
[419321623,1775161845261,-500.0,0.00019945,2]
[419321624,1775161845271,-500.0,0.00019945,2]
[419321625,1775161845280,-500.0,0.00019967,2]
[419321626,1775161845289,-3207.40519818,0.00019967,2]
[419321627,1775161845298,-10000.0,0.0002,4]
[419321628,1775161845309,-151.0,0.0002,2]
[419321629,1775161845318,-151.0,0.0002,2]
[419321630,1775161845328,-272.865792,0.0002,2]
[419321631,1775161845337,-1000.0,0.0002,2]
[419321632,1775161845347,-150.5675449,0.0002002,30]
[419321633,1775161845356,-1000.0,0.0002004,2]
[419321634,1775161845366,-196.209045,0.00020044,2]
[419321635,1775161845375,-1705.371773,0.00020044,7]
[419321636,1775161845385,-500.0,0.00020045,2]
[419321637,1775161845394,-3155.7,0.00020052,2]
[419321638,1775161845403,-151.0,0.00020174,2]
[419321639,1775161845412,-1000.0,0.00020221,2]
[419321640,1775161845422,-1000.0,0.00020221,2]
[419321641,1775161845431,-962.64096959,0.00020221,2]
[419321642,1775161845440,-1000.0,0.00020221,2]
[419321643,1775161845449,-1000.0,0.00020221,2]
[419321644,1775161845458,-1116.90315302,0.00020221,2]
[419321645,1775161845468,-1000.0,0.00020221,2]
[419321646,1775161845478,-1000.0,0.00020255,2]
[419321647,1775161845488,-426.03015484,0.00020255,2]
[419321649,1775161845498,-1000.0,0.00020255,2]
[419321651,1775161845507,-1000.0,0.00020255,2]
[419321652,1775161845517,-673.627852,0.00020255,2]
[419321653,1775161845527,-673.627852,0.00020255,2]
[419321654,1775161845536,-673.627852,0.00020255,2]
[419321655,1775161845545,-673.627861,0.00020255,2]
[419321656,1775161845554,-618.427464,0.00020255,2]
[419321657,1775161845563,-618.427464,0.00020255,2]
[419321658,1775161845573,-618.427464,0.00020255,2]
[419321659,1775161845582,-618.427456,0.00020255,2]
[419321660,1775161845592,-1000.0,0.00020284,2]
[419321661,1775161845602,-864.0,0.0002029,2]
[419321662,1775161845613,-500.0,0.00020312,2]
[419321663,1775161845622,-250.0,0.00020334,4]
[419321664,1775161845631,-695.5150762,0.00020366,30]
[419321665,1775161845641,-1389.0,0.00020367,2]
[419321666,1775161845650,-1405.0,0.00020374,2]
[419321667,1775161845659,-637.765,0.00020374,2]
[419321668,1775161845667,-2203.0,0.00020374,2]
[419321669,1775161845677,-735.0,0.00020374,2]
[419321671,1775161845687,-184.0,0.00020374,2]
[419321673,1775161845697,-440.0,0.00020374,2]
[419321674,1775161845707,-1000.0,0.00020379,2]
[419321676,1775161845716,-1000.0,0.00020425,2]
[419321677,1775161845726,-1000.0,0.00020425,2]
[419321678,1775161845735,-1000.0,0.00020425,2]
[419321679,1775161845744,-1000.0,0.00020425,2]
[419321680,1775161845753,-158.7963547,0.00020425,2]
[419321682,1775161845763,-1000.0,0.00020425,2]
[419321683,1775161845772,-264.35116722,0.00020493,2]
[419321684,1775161845781,-1000.0,0.00020493,2]
[419321685,1775161845791,-501.08564007,0.00020515,2]
[419321686,1775161845801,-3326.07919052,0.00020515,2]
[419321687,1775161845811,-1389.0,0.00020519,2]
[419321688,1775161845820,-554.27051246,0.00020593,2]
[419321689,1775161845830,-1389.0,0.00020619,2]
[419321690,1775161845839,-3155.7,0.00020651,2]
[419321691,1775161845849,-1897.956,0.00020678,2]
[419321692,1775161845859,-208.28119975,0.00020736,60]
[419321693,1775161845869,-214.70695761,0.00020736,60]
[419321694,1775161845879,-249.54508032,0.00020736,60]
[419321695,1775161845889,-379.89019538,0.00020736,60]
[419321696,1775161845899,-1502.89278865,0.00020769,2]
[419321697,1775161845984,-1500.0,0.00020769,2]
[419321698,1775161845994,-1500.0,0.00020769,2]
[419321699,1775161846003,-1500.0,0.00020769,2]
[419321700,1775161846013,-1500.0,0.00020769,2]
[419321701,1775161846022,-1500.0,0.00020803,2]
[419321702,1775161846031,-1500.0,0.00020803,2]
[419321704,1775161846041,-1500.0,0.00020803,2]
[419321705,1775161846051,-1500.0,0.00020832,2]
[419321706,1775161846060,-1000.0,0.0002086,2]
[419321707,1775161846070,-695.5150762,0.00020884,60]
[419321708,1775161846081,-201.0,0.000209,2]
[419321709,1775161846090,-623.0,0.000209,2]
[419321710,1775161846099,-152.0,0.000209,2]
[419321711,1775161846109,-170.0,0.00020919,2]
[419321712,1775161846119,-200.0,0.00020919,2]
[419321713,1775161846128,-1500.0,0.00020927,2]
[419321714,1775161846138,-393.51546555,0.00020973,2]
[419321715,1775161846147,-1500.0,0.00020973,2]
[419321716,1775161846157,-1500.0,0.00020973,2]
[419321717,1775161846166,-1556.34071386,0.00020973,2]
[419321718,1775161846175,-1500.0,0.00020973,2]
[419321719,1775161846184,-455.2232197,0.00020998,2]
[419321720,1775161846194,-161.1366763,0.00020998,2]
[419321721,1775161846203,-2402.871649,0.00021,2]
[419321722,1775161846215,-9010.44443282,0.00021,5]
[419321723,1775161846225,-1389.0,0.00021029,2]
[419321724,1775161846234,-1389.0,0.00021041,2]
[419321725,1775161846243,-680.18050752,0.00021041,2]
[419321726,1775161846253,-3449.14412057,0.00021063,2]
[419321727,1775161846262,-168.0,0.00021112,2]
[419321728,1775161846271,-1389.0,0.00021145,2]
[419321729,1775161846281,-3155.7,0.0002125,2]
[419321730,1775161846291,-253.76157029,0.00021266,2]
[419321731,1775161846301,-502.83281107,0.00021317,2]
[419321732,1775161846310,-2000.0,0.00021317,2]
[419321733,1775161846319,-2000.0,0.00021317,2]
[419321734,1775161846329,-2000.0,0.00021317,2]
[419321735,1775161846338,-500.0,0.00021322,2]
[419321736,1775161846347,-1389.0,0.00021327,2]
[419321737,1775161846357,-1389.0,0.0002133,2]
[419321738,1775161846367,-1869.94980388,0.00021351,2]
[419321739,1775161846376,-972.94440852,0.00021351,2]
[419321740,1775161846384,-2000.0,0.00021351,2]
[419321741,1775161846392,-1003.5073601,0.0002138,2]
[419321742,1775161846401,-695.5150762,0.00021402,60]
[419321743,1775161846409,-1500.0,0.00021408,2]
[419321744,1775161846416,-1389.0,0.00021428,2]
[419321745,1775161846425,-186.93,0.0002144,2]
[419321746,1775161846434,-502.61696391,0.00021475,2]
[419321747,1775161846443,-2358.49700184,0.0002148,2]
[419321748,1775161846452,-1504.18939692,0.00021521,2]
[419321749,1775161846461,-2000.0,0.00021521,2]
[419321750,1775161846471,-454.64845308,0.00021521,2]
[419321751,1775161846480,-1389.0,0.00021536,2]
[419321752,1775161846489,-3576.76245303,0.00021611,2]
[419321753,1775161846499,-1389.0,0.00021614,2]
[419321754,1775161846508,-168.0,0.00021621,2]
[419321755,1775161846518,-1389.0,0.00021629,2]
[419321756,1775161846527,-173.0,0.00021661,2]
[419321757,1775161846536,-800.0,0.00021753,2]
[419321758,1775161846545,-800.0,0.00021763,2]
[419321759,1775161846555,-1389.0,0.00021778,2]
[419321760,1775161846566,-1389.0,0.00021787,2]
[419321761,1775161846577,-151.0,0.000218,2]
[419321762,1775161846586,-324.9587121,0.000218,2]
[419321763,1775161846596,-9301.60473268,0.000218,2]
[419321764,1775161846606,-1389.0,0.00021803,2]
[419321765,1775161846617,-249.54508032,0.00021809,60]
[419321766,1775161846627,-379.89019538,0.00021809,60]
[419321767,1775161846636,-800.0,0.00021815,2]
[419321768,1775161846645,-324.9815827,0.0002182,2]
[419321769,1775161846654,-203.0,0.00021831,2]
[419321770,1775161846664,-3155.7,0.00021849,2]
[419321771,1775161846674,-544.86527867,0.00021865,2]
[419321772,1775161846684,-2005.92436876,0.00021865,2]
[419321773,1775161846693,-1586.83823284,0.00021865,2]
[419321774,1775161846702,-1000.0,0.0002187,2]
[419321775,1775161846711,-180.0558173,0.00021893,2]
[419321776,1775161846720,-2500.0,0.00021898,2]
[419321777,1775161846732,-201.0,0.000219,2]
[419321778,1775161846741,-623.0,0.000219,2]
[419321779,1775161846750,-152.0,0.000219,2]
[419321780,1775161846760,-3046.34650059,0.000219,2]
[419321781,1775161846769,-164.63736142,0.00021902,2]
[419321782,1775161846779,-151.125227,0.00021918,2]
[419321783,1775161846789,-151.125227,0.00021918,2]
[419321784,1775161846798,-151.125227,0.00021918,2]
[419321785,1775161846807,-151.125227,0.00021918,2]
[419321786,1775161846817,-151.125227,0.00021918,2]
[419321787,1775161846826,-151.125227,0.00021918,2]
[419321788,1775161846835,-151.125227,0.00021918,2]
[419321789,1775161846845,-151.125227,0.00021918,2]
[419321790,1775161846854,-151.125227,0.00021918,2]
[419321791,1775161846863,-151.0,0.00021918,2]
[419321792,1775161846874,-151.125227,0.00021918,2]
[419321793,1775161846883,-151.610021,0.00021918,2]
[419321794,1775161846893,-151.125227,0.00021918,2]
[419321795,1775161846902,-151.125227,0.00021918,2]
[419321796,1775161846911,-151.125227,0.00021918,2]
[419321797,1775161846921,-151.125227,0.00021918,2]
[419321798,1775161846931,-151.125227,0.00021918,2]
[419321799,1775161846940,-151.125227,0.00021918,2]
[419321800,1775161846950,-151.125227,0.00021918,2]
[419321801,1775161846959,-151.125227,0.00021918,2]
[419321802,1775161846968,-151.125227,0.00021918,2]
[419321803,1775161846979,-151.125221,0.00021918,2]
[419321804,1775161846990,-238.77512,0.00021918,2]
[419321805,1775161847000,-238.77512,0.00021918,2]
[419321806,1775161847010,-238.77512,0.00021918,2]
[419321807,1775161847020,-238.77512,0.00021918,2]
[419321808,1775161847030,-238.77512,0.00021918,2]
[419321809,1775161847039,-238.77512,0.00021918,2]
[419321810,1775161847048,-238.77512,0.00021918,2]
[419321811,1775161847058,-238.77512,0.00021918,2]
[419321812,1775161847068,-238.77512,0.00021918,2]
[419321813,1775161847077,-238.77512,0.00021918,2]
[419321814,1775161847088,-238.77512,0.00021918,2]
[419321815,1775161847097,-238.77512,0.00021918,2]
[419321816,1775161847106,-238.77512,0.00021918,2]
[419321817,1775161847116,-238.77512,0.00021918,2]
[419321818,1775161847125,-238.77512,0.00021918,2]
[419321819,1775161847134,-238.77512,0.00021918,2]
[419321820,1775161847144,-238.77512,0.00021918,2]
[419321821,1775161847153,-238.77512,0.00021918,2]
[419321822,1775161847162,-238.77512,0.00021918,2]
[419321823,1775161847172,-238.77512,0.00021918,2]
[419321824,1775161847181,-151.0,0.00021918,2]
[419321825,1775161847191,-151.0,0.00021918,2]
[419321826,1775161847201,-151.0,0.00021918,2]
[419321827,1775161847210,-151.0,0.00021918,2]
[419321828,1775161847220,-151.0,0.00021918,2]
[419321829,1775161847229,-151.0,0.00021918,2]
[419321830,1775161847239,-284.382005,0.00021918,2]
[419321831,1775161847249,-561.094528,0.00021918,2]
[419321832,1775161847258,-561.094528,0.00021918,2]
[419321833,1775161847269,-561.094528,0.00021918,2]
[419321834,1775161847278,-561.094528,0.00021918,2]
[419321835,1775161847287,-561.094528,0.00021918,2]
[419321836,1775161847297,-561.094528,0.00021918,2]
[419321837,1775161847306,-561.094528,0.00021918,2]
[419321838,1775161847315,-561.094528,0.00021918,2]
[419321839,1775161847324,-561.094528,0.00021918,2]
[419321840,1775161847333,-561.094528,0.00021918,2]
[419321841,1775161847343,-561.094528,0.00021918,2]
[419321842,1775161847352,-561.094528,0.00021918,2]
[419321843,1775161847362,-561.094528,0.00021918,2]
[419321844,1775161847371,-561.094528,0.00021918,2]
[419321845,1775161847380,-151.0,0.00021918,2]
[419321846,1775161847390,-561.094528,0.00021918,2]
[419321847,1775161847399,-561.094528,0.00021918,2]
[419321848,1775161847408,-151.0,0.00021918,2]
[419321849,1775161847418,-151.0,0.00021918,2]
[419321850,1775161847427,-561.094528,0.00021918,2]
[419321851,1775161847436,-151.0,0.00021918,2]
[419321852,1775161847446,-561.094528,0.00021918,2]
[419321853,1775161847455,-151.0,0.00021918,2]
[419321854,1775161847464,-251.681374,0.00021918,2]
[419321855,1775161847474,-561.094528,0.00021918,2]
[419321856,1775161847483,-561.094532,0.00021918,2]
[419321857,1775161847494,-403.313987,0.00021918,2]
[419321858,1775161847503,-403.313987,0.00021918,2]
[419321859,1775161847512,-403.313987,0.00021918,2]
[419321860,1775161847521,-403.313987,0.00021918,2]
[419321861,1775161847530,-403.313987,0.00021918,2]
[419321862,1775161847539,-403.313987,0.00021918,2]
[419321863,1775161847548,-403.313987,0.00021918,2]
[419321864,1775161847558,-403.313987,0.00021918,2]
[419321865,1775161847567,-403.313987,0.00021918,2]
[419321866,1775161847577,-403.313987,0.00021918,2]
[419321867,1775161847659,-403.313987,0.00021918,2]
[419321868,1775161847668,-403.313987,0.00021918,2]
[419321869,1775161847677,-403.313987,0.00021918,2]
[419321870,1775161847686,-403.313987,0.00021918,2]
[419321871,1775161847696,-403.313987,0.00021918,2]
[419321872,1775161847705,-403.313987,0.00021918,2]
[419321873,1775161847714,-403.313987,0.00021918,2]
[419321874,1775161847723,-403.313987,0.00021918,2]
[419321875,1775161847734,-403.313987,0.00021918,2]
[419321876,1775161847743,-403.313992,0.00021918,2]
[419321877,1775161847754,-401.291005,0.00021918,2]
[419321878,1775161847765,-401.291005,0.00021918,2]
[419321879,1775161847776,-401.291005,0.00021918,2]
[419321880,1775161847787,-401.291005,0.00021918,2]
[419321881,1775161847797,-401.291005,0.00021918,2]
[419321882,1775161847806,-401.291005,0.00021918,2]
[419321883,1775161847815,-401.291005,0.00021918,2]
[419321884,1775161847825,-401.291005,0.00021918,2]
[419321885,1775161847834,-401.291005,0.00021918,2]
[419321886,1775161847843,-401.291005,0.00021918,2]
[419321887,1775161847853,-401.291005,0.00021918,2]
[419321888,1775161847863,-340.560362,0.00021918,2]
[419321889,1775161847872,-401.291005,0.00021918,2]
[419321890,1775161847882,-340.560362,0.00021918,2]
[419321891,1775161847891,-401.291005,0.00021918,2]
[419321892,1775161847902,-340.560362,0.00021918,2]
[419321893,1775161847911,-401.291005,0.00021918,2]
[419321894,1775161847920,-340.560362,0.00021918,2]
[419321895,1775161847930,-401.291005,0.00021918,2]
[419321896,1775161847939,-340.560362,0.00021918,2]
[419321897,1775161847949,-401.291005,0.00021918,2]
[419321898,1775161847958,-340.560362,0.00021918,2]
[419321899,1775161847967,-340.560362,0.00021918,2]
[419321900,1775161847977,-401.291005,0.00021918,2]
[419321901,1775161847986,-340.560362,0.00021918,2]
[419321902,1775161847995,-401.291005,0.00021918,2]
[419321903,1775161848005,-340.560362,0.00021918,2]
[419321904,1775161848015,-401.291005,0.00021918,2]
[419321905,1775161848024,-340.560362,0.00021918,2]
[419321906,1775161848034,-401.291001,0.00021918,2]
[419321907,1775161848043,-340.560362,0.00021918,2]
[419321908,1775161848052,-340.560362,0.00021918,2]
[419321909,1775161848062,-340.560362,0.00021918,2]
[419321910,1775161848071,-340.560362,0.00021918,2]
[419321911,1775161848080,-340.560362,0.00021918,2]
[419321912,1775161848089,-340.560362,0.00021918,2]
[419321913,1775161848099,-340.560362,0.00021918,2]
[419321914,1775161848108,-1330.073847,0.00021918,2]
[419321915,1775161848118,-340.560362,0.00021918,2]
[419321916,1775161848128,-340.560362,0.00021918,2]
[419321917,1775161848137,-1330.073847,0.00021918,2]
[419321918,1775161848146,-340.560357,0.00021918,2]
[419321919,1775161848155,-1330.073847,0.00021918,2]
[419321920,1775161848165,-1330.073847,0.00021918,2]
[419321921,1775161848175,-1330.073847,0.00021918,2]
[419321922,1775161848184,-1330.073847,0.00021918,2]
[419321923,1775161848193,-1330.073847,0.00021918,2]
[419321924,1775161848202,-1330.073847,0.00021918,2]
[419321925,1775161848211,-1330.073847,0.00021918,2]
[419321926,1775161848220,-1330.073847,0.00021918,2]
[419321927,1775161848229,-1330.073847,0.00021918,2]
[419321928,1775161848238,-1330.073847,0.00021918,2]
[419321929,1775161848248,-1330.073847,0.00021918,2]
[419321930,1775161848258,-1330.073847,0.00021918,2]
[419321931,1775161848267,-1330.073847,0.00021918,2]
[419321932,1775161848277,-1330.073847,0.00021918,2]
[419321933,1775161848286,-1330.073847,0.00021918,2]
[419321934,1775161848296,-1330.073847,0.00021918,2]
[419321935,1775161848306,-1330.073847,0.00021918,2]
[419321936,1775161848315,-1330.073841,0.00021918,2]
[419321937,1775161848325,-151.0,0.00021918,2]
[419321938,1775161848334,-249.774734,0.00021918,2]
[419321939,1775161848343,-1659.871711,0.00021918,2]
[419321940,1775161848352,-1659.871711,0.00021918,2]
[419321941,1775161848361,-1659.871711,0.00021918,2]
[419321942,1775161848371,-1659.871711,0.00021918,2]
[419321943,1775161848381,-1659.871711,0.00021918,2]
[419321944,1775161848392,-1659.871711,0.00021918,2]
[419321945,1775161848408,-1659.871711,0.00021918,2]
[419321946,1775161848423,-1659.871711,0.00021918,2]
[419321947,1775161848439,-1659.871711,0.00021918,2]
[419321948,1775161848451,-1659.871711,0.00021918,2]
[419321949,1775161848465,-1659.871711,0.00021918,2]
[419321950,1775161848479,-1659.871711,0.00021918,2]
[419321951,1775161848495,-1659.871711,0.00021918,2]
[419321952,1775161848509,-1659.871711,0.00021918,2]
[419321953,1775161848522,-1659.871711,0.00021918,2]
[419321954,1775161848537,-1659.871711,0.00021918,2]
[419321955,1775161848550,-1659.871711,0.00021918,2]
[419321956,1775161848563,-1659.871711,0.00021918,2]
[419321957,1775161848575,-1659.871711,0.00021918,2]
[419321958,1775161848588,-1659.871707,0.00021918,2]
[419321959,1775161848599,-151.0,0.00021918,2]
[419321960,1775161848612,-165.802762,0.00021918,2]
[419321961,1775161848626,-151.0,0.00021918,2]
[419321962,1775161848640,-151.0,0.00021918,2]
[419321963,1775161848654,-151.0,0.00021918,2]
[419321964,1775161848668,-151.0,0.00021918,2]
[419321965,1775161848683,-151.0,0.00021918,2]
[419321966,1775161848698,-151.0,0.00021918,2]
[419321967,1775161848710,-151.0,0.00021918,2]
[419321968,1775161848721,-151.0,0.00021918,2]
[419321969,1775161848735,-151.0,0.00021918,2]
[419321970,1775161848751,-151.0,0.00021918,2]
[419321971,1775161848763,-151.0,0.00021918,2]
[419321972,1775161848777,-151.0,0.00021918,2]
[419321973,1775161848792,-201.646324,0.00021918,2]
[419321974,1775161848806,-151.0,0.00021918,2]
[419321975,1775161848819,-151.168643,0.00021918,2]
[419321976,1775161848832,-151.0,0.00021918,2]
[419321977,1775161848843,-151.0,0.00021918,2]
[419321978,1775161848854,-151.0,0.00021918,2]
[419321979,1775161848867,-151.0,0.00021918,2]
[419321980,1775161848879,-151.0,0.00021918,2]
[419321981,1775161848891,-151.0,0.00021918,2]
[419321982,1775161848903,-151.0,0.00021918,2]
[419321983,1775161848915,-151.0,0.00021918,2]
[419321984,1775161848927,-151.0,0.00021918,2]
[419321985,1775161848939,-211.85966,0.00021918,2]
[419321986,1775161848951,-151.0,0.00021918,2]
[419321987,1775161848963,-151.0,0.00021918,2]
[419321988,1775161848975,-151.0,0.00021918,2]
[419321989,1775161848988,-151.0,0.00021918,2]
[419321990,1775161849000,-151.0,0.00021918,2]
[419321991,1775161849013,-1994.659941,0.00021918,2]
[419321992,1775161849024,-151.0,0.00021918,2]
[419321993,1775161849036,-1994.659941,0.00021918,2]
[419321994,1775161849048,-173.904366,0.00021918,2]
[419321995,1775161849060,-1994.659941,0.00021918,2]
[419321996,1775161849072,-1994.659941,0.00021918,2]
[419321997,1775161849084,-1994.659941,0.00021918,2]
[419321998,1775161849095,-1994.659941,0.00021918,2]
[419321999,1775161849107,-1994.659941,0.00021918,2]
[419322000,1775161849118,-1994.659941,0.00021918,2]
[419322001,1775161849129,-1994.659941,0.00021918,2]
[419322002,1775161849141,-1994.659941,0.00021918,2]
[419322003,1775161849153,-1994.659941,0.00021918,2]
[419322004,1775161849166,-1994.659941,0.00021918,2]
[419322005,1775161849177,-1994.659941,0.00021918,2]
[419322006,1775161849189,-1994.659941,0.00021918,2]
[419322007,1775161849201,-1994.659941,0.00021918,2]
[419322008,1775161849213,-1994.659941,0.00021918,2]
[419322009,1775161849225,-1994.659941,0.00021918,2]
[419322010,1775161849236,-1994.659941,0.00021918,2]
[419322011,1775161849248,-1994.659941,0.00021918,2]
[419322012,1775161849260,-1994.65994,0.00021918,2]
[419322013,1775161849272,-151.0,0.00021918,2]
[419322014,1775161849283,-151.0,0.00021918,2]
[419322015,1775161849296,-151.0,0.00021918,2]
[419322016,1775161849309,-151.0,0.00021918,2]
[419322017,1775161849321,-151.0,0.00021918,2]
[419322018,1775161849331,-286.0,0.00021918,2]
[419322019,1775161849341,-151.0,0.00021918,2]
[419322020,1775161849352,-151.0,0.00021918,2]
[419322021,1775161849362,-151.0,0.00021918,2]
[419322022,1775161849483,-151.0,0.00021918,2]
[419322023,1775161849501,-151.0,0.00021918,2]
[419322024,1775161849511,-151.0,0.00021918,2]
[419322025,1775161849520,-151.0,0.00021918,2]
[419322026,1775161849529,-151.0,0.00021918,2]
[419322027,1775161849539,-246.710344,0.00021918,2]
[419322028,1775161849548,-151.0,0.00021918,2]
[419322029,1775161849556,-151.0,0.00021918,2]
[419322030,1775161849566,-151.0,0.00021918,2]
[419322031,1775161849575,-151.0,0.00021918,2]
[419322032,1775161849584,-208.601576,0.00021918,2]
[419322033,1775161849593,-151.0,0.00021918,2]
[419322034,1775161849603,-264.883234,0.00021918,2]
[419322035,1775161849612,-151.0,0.00021918,2]
[419322036,1775161849622,-151.0,0.00021918,2]
[419322037,1775161849632,-151.0,0.00021918,2]
[419322038,1775161849642,-151.0,0.00021918,2]
[419322039,1775161849651,-237.683571,0.00021918,2]
[419322040,1775161849661,-404.819331,0.00021918,2]
[419322041,1775161849670,-404.819331,0.00021918,2]
[419322042,1775161849679,-276.615865,0.00021918,2]
[419322043,1775161849689,-404.819331,0.00021918,2]
[419322044,1775161849697,-404.819331,0.00021918,2]
[419322045,1775161849706,-404.819331,0.00021918,2]
[419322046,1775161849715,-404.819331,0.00021918,2]
[419322047,1775161849724,-404.819331,0.00021918,2]
[419322048,1775161849733,-151.651412,0.00021918,2]
[419322049,1775161849743,-404.819331,0.00021918,2]
[419322050,1775161849753,-404.819331,0.00021918,2]
[419322051,1775161849763,-404.819331,0.00021918,2]
[419322052,1775161849772,-404.819331,0.00021918,2]
[419322053,1775161849783,-404.819331,0.00021918,2]
[419322054,1775161849793,-151.0,0.00021918,2]